bitfinex/quotes_BTCUSD_20251117
["timestamp","ask_amount","ask_price","bid_price","bid_amount"]
[1763376317808,0.04341874,95938.0,95932.0,0.0208481]
[1763376318222,0.00300012,95937.0,95932.0,0.0208481]
[1763376318835,0.00300012,95937.0,95931.0,0.00953]
[1763376320597,0.02693012,95937.0,95929.0,0.02084875]
[1763376320811,0.323,95936.0,95929.0,0.02084875]
[1763376321263,0.34693,95936.0,95929.0,0.02084875]
[1763376321989,0.02393,95936.0,95929.0,0.02084875]
[1763376322470,0.02693012,95936.0,95930.0,0.02084853]
[1763376322705,0.02693012,95936.0,95931.0,0.02084831]
[1763376322898,0.02393,95936.0,95931.0,0.02084831]
[1763376323789,0.02493,95936.0,95929.0,0.02084875]
[1763376324420,0.02393,95936.0,95929.0,0.02084875]
[1763376324798,0.02493,95936.0,95929.0,0.02084875]
[1763376325226,0.02393,95936.0,95929.0,0.02084875]
[1763376325643,0.02493,95936.0,95929.0,0.02084875]
[1763376328165,0.02845,95930.0,95929.0,0.02084875]
[1763376328368,0.02845,95930.0,95928.0,0.1]
[1763376331174,0.01231,95930.0,95929.0,0.02084875]
[1763376331881,0.323,95932.0,95929.0,0.02084875]
[1763376332063,0.323,95932.0,95930.0,0.02084853]
[1763376333085,0.323,95932.0,95929.0,0.02084875]
[1763376334012,0.324,95932.0,95929.0,0.02084875]
[1763376334425,0.323,95932.0,95929.0,0.02084875]
[1763376334759,0.324,95932.0,95929.0,0.02084875]
[1763376335613,0.324,95932.0,95931.0,0.02575]
[1763376335827,0.001,95932.0,95931.0,0.04659831]
[1763376336063,0.001,95932.0,95931.0,0.12012831]
[1763376336478,0.0105416,95944.0,95931.0,0.12012831]
[1763376336479,0.0105416,95944.0,95932.0,0.04942]
[1763376336659,0.0105416,95944.0,95940.0,0.01622]
[1763376336993,0.0105416,95944.0,95940.0,0.03933]
[1763376337142,0.0105416,95944.0,95931.0,0.01053]
[1763376337477,0.323,95949.0,95931.0,0.01053]
[1763376337478,0.323,95949.0,95943.0,0.02475]
[1763376337713,0.323,95949.0,95948.0,0.01622]
[1763376337903,0.01053447,95954.0,95948.0,0.01622]
[1763376338044,0.01053447,95954.0,95948.0,0.04033]
[1763376338246,0.00300012,95964.0,95953.0,0.02625]
[1763376338454,0.323,95962.0,95953.0,0.02625]
[1763376338654,0.00300012,95961.0,95953.0,0.02625]
[1763376338858,0.0122319,95959.0,95953.0,0.02625]
[1763376339055,0.002,95959.0,95958.0,0.01622]
[1763376339265,0.002,95959.0,95958.0,0.04986]
[1763376339486,0.002,95959.0,95958.0,0.07070245]
[1763376339682,0.002,95959.0,95958.0,0.04986]
[1763376340112,0.003,95959.0,95958.0,0.04986]
[1763376340322,0.003,95959.0,95958.0,0.14986]
[1763376340523,0.003,95959.0,95958.0,0.15086]
[1763376340524,0.002,95959.0,95958.0,0.15086]
[1763376340924,0.002,95959.0,95958.0,0.16727727]
[1763376341203,0.002,95959.0,95958.0,0.16827727]
[1763376341657,0.002,95959.0,95958.0,0.48091727]
[1763376341851,0.002,95959.0,95958.0,0.4645]
[1763376342316,0.002,95959.0,95958.0,0.4635]
[1763376342691,0.002,95959.0,95958.0,0.4625]
[1763376343102,0.002,95959.0,95958.0,0.4635]
[1763376353822,0.002,95959.0,95958.0,0.51292]
[1763376363370,0.002,95959.0,95958.0,5.51292]
[1763376363616,0.0002,95990.0,95973.0,0.04942]
[1763376363841,0.00064118,95990.0,95989.0,0.07712215]
[1763376364060,0.00064118,95990.0,95989.0,0.41049787]
[1763376364271,0.00064118,95990.0,95989.0,0.41276215]
[1763376364929,0.00164118,95990.0,95989.0,0.41276215]
[1763376365354,0.00064118,95990.0,95989.0,0.41276215]
[1763376366756,0.00164118,95990.0,95989.0,0.41276215]
[1763376367415,0.00064118,95990.0,95989.0,0.41276215]
[1763376367642,0.00164118,95990.0,95989.0,0.41276215]
[1763376368078,0.00064118,95990.0,95989.0,0.41276215]
[1763376368505,0.00164118,95990.0,95989.0,0.41276215]
[1763376369487,0.00164118,95990.0,95989.0,0.38966215]
[1763376369698,0.04863118,95990.0,95989.0,0.31254]
[1763376370130,0.57998621,95990.0,95989.0,0.31254]
[1763376370823,0.34684118,95990.0,95989.0,0.31254]
[1763376371041,0.62240495,95990.0,95989.0,0.31254]
[1763376371270,0.62340495,95990.0,95989.0,0.31254]
[1763376371483,0.62440495,95990.0,95989.0,0.31254]
[1763376371705,0.62240495,95990.0,95989.0,0.31254]
[1763376371916,0.62340495,95990.0,95989.0,0.31254]
[1763376373211,0.41604992,95990.0,95989.0,0.31254]
[1763376373431,0.62440495,95990.0,95989.0,0.31254]
[1763376375160,0.41604992,95990.0,95989.0,0.31254]
[1763376375372,0.62440495,95990.0,95989.0,0.31254]
[1763376377414,0.64076448,95990.0,95989.0,0.31254]
[1763376377817,0.62440495,95990.0,95989.0,0.31254]
[1763376378635,0.41604992,95990.0,95989.0,0.31254]
[1763376380609,0.39125992,95990.0,95989.0,0.31254]
[1763376380833,0.36420045,95990.0,95989.0,0.31254]
[1763376381233,0.40761919,95990.0,95989.0,0.31254]
[1763376381631,0.39260919,95990.0,95989.0,0.31254]
[1763376384014,0.43235919,95990.0,95989.0,0.31254]
[1763376384216,0.40841919,95990.0,95989.0,0.31254]
[1763376384456,0.39260919,95990.0,95989.0,0.31254]
[1763376384659,0.34200045,95990.0,95989.0,0.31254]
[1763376384863,0.01900045,95990.0,95989.0,0.35065]
[1763376385035,0.00264118,95990.0,95989.0,0.35065]
[1763376385633,0.00264118,95990.0,95989.0,0.32767]
[1763376385833,0.00164118,95990.0,95989.0,0.35065]
[1763376386246,0.00264118,95990.0,95989.0,0.35065]
[1763376386496,0.00264118,95990.0,95989.0,0.32767]
[1763376386660,0.00264118,95990.0,95989.0,0.35065]
[1763376386860,0.00164118,95990.0,95989.0,0.35065]
[1763376387281,0.00264118,95990.0,95989.0,0.35065]
[1763376387723,0.00164118,95990.0,95989.0,0.35065]
[1763376388103,0.00264118,95990.0,95989.0,0.35065]
[1763376394205,0.00164118,95990.0,95989.0,0.35065]
[1763376394430,0.00064118,95990.0,95989.0,0.35065]
[1763376394735,0.00164118,95990.0,95989.0,0.35065]
[1763376395145,0.00064118,95990.0,95989.0,0.35065]
[1763376395528,0.00164118,95990.0,95989.0,0.35065]
[1763376395922,0.00064118,95990.0,95989.0,0.35065]
[1763376397699,0.00164118,95990.0,95989.0,0.35065]
[1763376398121,0.00164118,95990.0,95989.0,0.40007]
[1763376399175,0.00064118,95990.0,95989.0,0.40007]
[1763376400574,0.00164118,95990.0,95989.0,0.40007]
[1763376400981,0.00064118,95990.0,95989.0,0.40007]
[1763376401390,0.00164118,95990.0,95989.0,0.40007]
[1763376401928,0.00064118,95990.0,95989.0,0.40007]
[1763376402105,0.00164118,95990.0,95989.0,0.40007]
[1763376403392,0.00064118,95990.0,95989.0,0.40007]
[1763376403961,0.00164118,95990.0,95989.0,0.40007]
[1763376407268,0.00164118,95990.0,95989.0,0.4096]
[1763376407476,0.00064118,95990.0,95989.0,0.4096]
[1763376407681,0.00164118,95990.0,95989.0,0.4096]
[1763376408288,0.00064118,95990.0,95989.0,0.4096]
[1763376409740,0.00164118,95990.0,95989.0,0.4096]
[1763376410144,0.00064118,95990.0,95989.0,0.4096]
[1763376413924,0.00164118,95990.0,95989.0,0.4096]
[1763376414332,0.00064118,95990.0,95989.0,0.4096]
[1763376416150,0.00164118,95990.0,95989.0,0.4096]
[1763376416611,0.00064118,95990.0,95989.0,0.4096]
[1763376416818,0.00164118,95990.0,95989.0,0.4096]
[1763376417378,0.00064118,95990.0,95989.0,0.4096]
[1763376417660,0.00164118,95990.0,95989.0,0.4096]
[1763376419026,0.00064118,95990.0,95989.0,0.4096]
[1763376419239,0.00164118,95990.0,95989.0,0.4096]
[1763376419637,0.00064118,95990.0,95989.0,0.4096]
[1763376421537,0.00064118,95990.0,95989.0,0.3372]
[1763376421740,0.00064118,95990.0,95989.0,0.33781]
[1763376421975,0.00064118,95990.0,95989.0,0.36215]
[1763376422175,0.00164118,95990.0,95989.0,0.36215]
[1763376422542,0.00064118,95990.0,95989.0,0.36215]
[1763376423083,0.00164118,95990.0,95989.0,0.36215]
[1763376423427,0.00064118,95990.0,95989.0,0.36215]
[1763376423642,0.00164118,95990.0,95989.0,0.36215]
[1763376424068,0.00264118,95990.0,95989.0,0.36215]
[1763376425006,0.00264118,95990.0,95989.0,0.33781]
[1763376425212,0.02976118,95990.0,95989.0,0.31254]
[1763376425419,0.01394118,95990.0,95989.0,0.31254]
[1763376425616,0.00264118,95990.0,95989.0,0.31254]
[1763376425816,0.00264118,95990.0,95989.0,0.32828]
[1763376426065,0.00264118,95990.0,95989.0,0.35262]
[1763376426217,0.00164118,95990.0,95989.0,0.35262]
[1763376426384,0.00064118,95990.0,95989.0,0.35262]
[1763376426590,0.00164118,95990.0,95989.0,0.35262]
[1763376426833,0.00264118,95990.0,95989.0,0.35262]
[1763376431397,0.00064118,95990.0,95989.0,0.35262]
[1763376431579,0.00164118,95990.0,95989.0,0.35262]
[1763376431807,0.00264118,95990.0,95989.0,0.35262]
[1763376432228,0.00164118,95990.0,95989.0,0.35262]
[1763376432446,0.00064118,95990.0,95989.0,0.35262]
[1763376432657,0.00164118,95990.0,95989.0,0.35262]
[1763376432861,0.00264118,95990.0,95989.0,0.35262]
[1763376433056,0.00164118,95990.0,95989.0,0.35262]
[1763376433369,0.00264118,95990.0,95989.0,0.35262]
[1763376443219,0.00264118,95990.0,95989.0,0.31254]
[1763376443396,0.04389118,95990.0,95989.0,0.31254]
[1763376443598,0.00264118,95990.0,95989.0,0.31254]
[1763376444671,0.00264118,95990.0,95989.0,0.32839]
[1763376444808,0.00264118,95990.0,95989.0,0.35187]
[1763376450064,0.00264118,95990.0,95989.0,0.32839]
[1763376450275,0.00264118,95990.0,95989.0,0.31254]
[1763376451575,0.00264118,95990.0,95989.0,0.32839]
[1763376451780,0.00264118,95990.0,95989.0,0.35187]
[1763376451960,0.00264118,95990.0,95989.0,0.32839]
[1763376453436,0.00264118,95990.0,95989.0,0.31254]
[1763376455140,0.04389118,95990.0,95989.0,0.31254]
[1763376457040,0.04189118,95990.0,95989.0,0.31254]
[1763376457391,0.00264118,95990.0,95989.0,0.31254]
[1763376471265,0.00264118,95990.0,95986.0,0.05212215]
[1763376471430,0.01147,95987.0,95986.0,0.05212215]
[1763376471640,0.01147,95987.0,95970.0,0.2]
[1763376471833,0.01147,95987.0,95981.0,0.05212215]
[1763376472034,0.01147,95987.0,95981.0,0.36468215]
[1763376472493,0.01247,95987.0,95981.0,0.36468215]
[1763376472637,0.01347,95987.0,95981.0,0.36468215]
[1763376472839,0.01147,95987.0,95981.0,0.36468215]
[1763376473294,0.01347,95987.0,95981.0,0.36468215]
[1763376473791,0.01347,95987.0,95982.0,0.02083724]
[1763376474037,0.01347,95987.0,95982.0,0.33339724]
[1763376475030,0.01247,95987.0,95982.0,0.33339724]
[1763376475406,0.01347,95987.0,95982.0,0.33339724]
[1763376475789,0.01247,95987.0,95982.0,0.33339724]
[1763376475990,0.01347,95987.0,95982.0,0.33339724]
[1763376480063,0.03843,95987.0,95982.0,0.33339724]
[1763376481079,0.03826269,95987.0,95982.0,0.33339724]
[1763376481881,0.01330269,95987.0,95982.0,0.33339724]
[1763376482804,0.01147,95983.0,95982.0,0.33339724]
[1763376482987,0.02748,95983.0,95982.0,0.31256]
[1763376483193,0.58381023,95983.0,95982.0,0.31256]
[1763376483391,0.65470897,95983.0,95982.0,0.31256]
[1763376483596,0.44633874,95983.0,95982.0,0.31256]
[1763376483790,0.65470897,95983.0,95982.0,0.31256]
[1763376484430,0.65570897,95983.0,95982.0,0.31256]
[1763376484832,0.65470897,95983.0,95982.0,0.31256]
[1763376485143,0.44833874,95983.0,95982.0,0.31256]
[1763376485362,0.65670897,95983.0,95982.0,0.31256]
[1763376485555,0.65770897,95983.0,95982.0,0.31256]
[1763376488117,0.44933874,95983.0,95982.0,0.31256]
[1763376488286,0.65770897,95983.0,95982.0,0.31256]
[1763376489376,0.6740689,95983.0,95982.0,0.31256]
[1763376494281,0.46569867,95983.0,95982.0,0.31256]
[1763376494902,0.6740689,95983.0,95982.0,0.31256]
[1763376495101,0.46569867,95983.0,95982.0,0.31256]
[1763376496615,0.6740689,95983.0,95982.0,0.31256]
[1763376497818,0.46569867,95983.0,95982.0,0.31256]
[1763376506036,0.6740689,95983.0,95982.0,0.31256]
[1763376506365,0.46569867,95983.0,95982.0,0.31256]
[1763376506849,0.6740689,95983.0,95982.0,0.31256]
[1763376508957,0.69658706,95983.0,95982.0,0.31256]
[1763376518670,0.48821683,95983.0,95982.0,0.31256]
[1763376518870,0.69658706,95983.0,95982.0,0.31256]
[1763376521766,1.03550273,95983.0,95982.0,0.25956]
[1763376521987,1.07308019,95983.0,95982.0,0.25956]
[1763376522169,1.0191428,95983.0,95982.0,0.25956]
[1763376522705,0.04341874,95969.0,95935.0,0.1]
[1763376522907,0.51760161,95945.0,95936.0,0.02084723]
[1763376523379,0.03434397,95944.0,95936.0,0.02084723]
[1763376523583,0.03134385,95944.0,95936.0,0.04433723]
[1763376523954,0.03134385,95944.0,95937.0,0.02349]
[1763376524401,0.03134385,95944.0,95943.0,0.01568]
[1763376525209,0.03234385,95944.0,95938.0,0.01441459]
[1763376525439,0.03234385,95944.0,95936.0,0.0200814]
[1763376525576,0.03234385,95944.0,95937.0,0.02376]
[1763376525912,0.03234385,95944.0,95938.0,0.02084679]
[1763376526321,0.03134385,95944.0,95938.0,0.02084679]
[1763376526678,0.03234385,95944.0,95938.0,0.02084679]
[1763376526868,0.03234385,95944.0,95936.0,0.0176379]
[1763376527068,0.03134385,95944.0,95937.0,0.02084701]
[1763376527513,0.03234385,95944.0,95937.0,0.02084701]
[1763376527909,0.00300012,95943.0,95937.0,0.02084701]
[1763376528486,0.00300012,95943.0,95936.0,0.00013255]
[1763376528693,0.00300012,95943.0,95936.0,0.02097978]
[1763376529261,0.03234385,95944.0,95942.0,0.01615]
[1763376529419,0.03134385,95944.0,95943.0,0.01615]
[1763376529818,0.03134385,95944.0,95943.0,0.01515]
[1763376530206,0.03134385,95944.0,95943.0,0.03891]
[1763376530598,0.03234385,95944.0,95943.0,0.03891]
[1763376531015,0.03234385,95944.0,95943.0,0.01515]
[1763376531254,0.03234385,95944.0,95941.0,0.02084614]
[1763376531434,0.03134385,95944.0,95941.0,0.02084614]
[1763376531630,0.03134385,95944.0,95941.0,0.02014614]
[1763376532240,0.03134385,95944.0,95939.0,0.1]
[1763376532241,0.03134385,95944.0,95940.0,0.02014636]
[1763376532434,0.03134385,95944.0,95943.0,0.001]
[1763376532644,0.03134385,95944.0,95940.0,0.02014636]
[1763376532858,0.03134385,95944.0,95942.0,0.1]
[1763376533714,0.03134385,95944.0,95943.0,0.001]
[1763376533925,0.03134385,95944.0,95942.0,0.1]
[1763376535209,0.03134385,95944.0,95943.0,0.03991]
[1763376535995,0.03134385,95944.0,95943.0,0.01615]
[1763376536404,0.03134385,95944.0,95943.0,0.01715]
[1763376537968,0.03134385,95944.0,95943.0,0.001]
[1763376541059,0.03134385,95944.0,95943.0,0.01715]
[1763376542282,0.03134385,95944.0,95943.0,0.04091]
[1763376542692,0.03134385,95944.0,95943.0,0.001]
[1763376543056,0.01502012,95951.0,95943.0,0.001]
[1763376543440,0.03134224,95950.0,95943.0,0.001]
[1763376543619,0.00370012,95949.0,95943.0,0.001]
[1763376544323,0.03134224,95948.0,95943.0,0.001]
[1763376544488,0.00370012,95947.0,95943.0,0.001]
[1763376544719,0.00370012,95947.0,95942.0,0.1]
[1763376545098,0.03134224,95947.0,95942.0,0.1]
[1763376545951,0.05901874,95943.0,95942.0,0.1]
[1763376546593,0.09036445,95943.0,95942.0,0.1]
[1763376548284,0.11357445,95943.0,95942.0,0.1]
[1763376548486,0.11357445,95943.0,95942.0,0.101]
[1763376549501,0.12993669,95943.0,95942.0,0.101]
[1763376549842,0.11357445,95943.0,95942.0,0.101]
[1763376550246,0.03134571,95943.0,95942.0,0.101]
[1763376550450,0.323,95951.0,95942.0,0.14091]
[1763376550651,0.03134149,95950.0,95945.0,0.05730122]
[1763376551881,0.03504161,95950.0,95943.0,0.00787]
[1763376552216,0.03504161,95950.0,95944.0,0.05730122]
[1763376552366,0.03604161,95950.0,95944.0,0.05730122]
[1763376552763,0.01636172,95949.0,95944.0,0.05730122]
[1763376552965,0.01636172,95949.0,95945.0,0.05730122]
[1763376553369,0.04770321,95949.0,95945.0,0.05730122]
[1763376553610,0.04770321,95949.0,95943.0,0.02787651]
[1763376553769,0.04770321,95949.0,95945.0,0.05730122]
[1763376554731,0.04770321,95949.0,95943.0,0.02787651]
[1763376555034,0.03453,95948.0,95942.0,0.1]
[1763376555232,0.0156,95944.0,95943.0,0.05730122]
[1763376555495,0.0156,95944.0,95942.0,0.1]
[1763376555709,0.0156,95944.0,95943.0,0.05730122]
[1763376555899,0.0156,95944.0,95942.0,0.1]
[1763376556056,0.0156,95944.0,95943.0,0.05730122]
[1763376556444,0.0156,95944.0,95942.0,0.1]
[1763376556445,0.03888,95944.0,95942.0,0.1]
[1763376556643,0.06216,95944.0,95942.0,0.1]
[1763376557043,0.03888,95944.0,95942.0,0.1]
[1763376557652,0.02328,95944.0,95942.0,0.1]
[1763376558190,0.01619,95943.0,95942.0,0.101]
[1763376559112,0.01619,95943.0,95942.0,0.1]
[1763376559267,0.01619,95943.0,95942.0,0.101]
[1763376561071,0.04241012,95943.0,95942.0,0.101]
[1763376562030,0.06493012,95943.0,95942.0,0.101]
[1763376562353,0.64350608,95943.0,95942.0,0.101]
[1763376562592,0.63980596,95943.0,95942.0,0.101]
[1763376567038,0.6623566,95943.0,95942.0,0.101]
[1763376569251,0.63980596,95943.0,95942.0,0.101]
[1763376571227,0.65616956,95943.0,95942.0,0.101]
[1763376573250,0.44771246,95943.0,95942.0,0.101]
[1763376573451,0.42519246,95943.0,95942.0,0.101]
[1763376573628,0.02165284,95959.0,95942.0,0.101]
[1763376573629,0.02815818,95968.0,95942.0,0.14071]
[1763376573835,0.00370012,95967.0,95954.0,0.05730122]
[1763376574034,0.03133913,95958.0,95954.0,0.05730122]
[1763376574299,0.00370012,95962.0,95955.0,0.00887]
[1763376574433,0.323,95963.0,95955.0,0.00887]
[1763376574434,0.03133815,95963.0,95961.0,0.00787]
[1763376575104,0.03133815,95963.0,95955.0,0.00887]
[1763376575105,0.00370012,95962.0,95955.0,0.00887]
[1763376575312,0.00370012,95962.0,95955.0,0.0297131]
[1763376575522,0.00370012,95962.0,95956.0,0.02084288]
[1763376575692,0.00370012,95962.0,95961.0,0.1]
[1763376575873,0.05755827,95963.0,95961.0,0.1]
[1763376576586,0.03503827,95963.0,95961.0,0.1]
[1763376577012,0.03503827,95963.0,95961.0,0.101]
[1763376577820,0.03871,95962.0,95961.0,0.101]
[1763376578245,0.01619,95962.0,95961.0,0.101]
[1763376578823,0.01989012,95962.0,95961.0,0.1]
[1763376579025,0.01619,95962.0,95961.0,0.1]
[1763376580256,0.01619,95962.0,95961.0,0.101]
[1763376580493,0.03503827,95963.0,95961.0,0.101]
[1763376580705,0.03133815,95963.0,95961.0,0.101]
[1763376581498,0.03133815,95963.0,95961.0,0.1]
[1763376581747,0.03133815,95963.0,95962.0,0.05730122]
[1763376581878,0.323,95966.0,95962.0,0.07375122]
[1763376582077,0.03133697,95965.0,95962.0,0.01645]
[1763376583002,0.00370012,95964.0,95963.0,0.1]
[1763376583195,0.03503709,95965.0,95963.0,0.1]
[1763376583424,0.00370012,95964.0,95963.0,0.1]
[1763376583919,0.03133697,95965.0,95963.0,0.1]
[1763376589813,0.02613716,95965.0,95963.0,0.1]
[1763376595258,0.05064716,95965.0,95963.0,0.1]
[1763376595850,0.02613716,95965.0,95963.0,0.1]
[1763376596159,0.02451,95964.0,95963.0,0.1]
[1763376596340,0.02613716,95965.0,95963.0,0.1]
[1763376600282,0.42121886,95964.0,95963.0,0.1]
[1763376600445,0.41751874,95964.0,95963.0,0.1]
[1763376601071,0.44886033,95964.0,95963.0,0.1]
[1763376602565,0.65727181,95964.0,95963.0,0.1]
[1763376602778,0.67980817,95964.0,95963.0,0.1]
[1763376603303,0.68959761,95964.0,95963.0,0.1]
[1763376604311,0.67980817,95964.0,95963.0,0.1]
[1763376604507,0.69617004,95964.0,95963.0,0.1]
[1763376605303,0.67980817,95964.0,95963.0,0.1]
[1763376606338,0.47139669,95964.0,95963.0,0.1]
[1763376606563,0.67980817,95964.0,95963.0,0.1]
[1763376608742,0.02766165,95964.0,95963.0,0.1]
[1763376608952,0.01636165,95964.0,95963.0,0.1]
[1763376609601,0.02006177,95964.0,95963.0,0.1]
[1763376610036,0.05978039,95964.0,95963.0,0.1]
[1763376611151,0.05978039,95964.0,95963.0,0.13954]
[1763376611152,0.01636165,95964.0,95963.0,0.13954]
[1763376611814,0.01022833,95972.0,95963.0,0.13954]
[1763376612028,0.00370012,95971.0,95964.0,0.08701236]
[1763376612655,0.51764967,95973.0,95965.0,0.023]
[1763376612904,0.00370012,95972.0,95965.0,0.023]
[1763376613941,0.00381042,95972.0,95971.0,0.1]
[1763376614570,0.0399103,95972.0,95971.0,0.1]
[1763376615190,0.04361042,95972.0,95971.0,0.1]
[1763376615427,0.0399103,95972.0,95971.0,0.1]
[1763376616747,0.04361042,95972.0,95971.0,0.1]
[1763376616950,0.0399103,95972.0,95971.0,0.1]
[1763376620057,0.61472315,95972.0,95971.0,0.1]
[1763376622064,0.40632904,95972.0,95971.0,0.1]
[1763376622570,0.36652904,95972.0,95971.0,0.1]
[1763376625132,0.38288829,95972.0,95971.0,0.1]
[1763376625326,0.36652904,95972.0,95971.0,0.1]
[1763376625562,0.40487904,95972.0,95971.0,0.1]
[1763376625801,0.61327315,95972.0,95971.0,0.1]
[1763376626002,0.36652904,95972.0,95971.0,0.1]
[1763376628033,0.3231103,95972.0,95971.0,0.1]
[1763376628675,0.3614603,95972.0,95971.0,0.1]
[1763376629549,0.56985441,95972.0,95971.0,0.1]
[1763376629755,0.61327315,95972.0,95971.0,0.1]
[1763376631959,0.40487904,95972.0,95971.0,0.1]
[1763376632133,0.61327315,95972.0,95971.0,0.1]
[1763376634123,0.40487904,95972.0,95971.0,0.1]
[1763376635208,0.61327315,95972.0,95971.0,0.1]
[1763376636359,0.40487904,95972.0,95971.0,0.1]
[1763376637035,0.61327315,95972.0,95971.0,0.1]
[1763376638214,0.40487904,95972.0,95971.0,0.1]
[1763376638810,0.38288874,95972.0,95971.0,0.1]
[1763376639185,0.36652904,95972.0,95971.0,0.1]
[1763376639416,0.36652904,95972.0,95971.0,0.10787]
[1763376639585,0.3231103,95972.0,95971.0,0.10787]
[1763376642554,0.0001103,95972.0,95971.0,0.14832]
[1763376642693,0.0001103,95972.0,95971.0,0.04832]
[1763376643037,0.0001103,95972.0,95971.0,0.06915962]
[1763376643815,0.0001103,95972.0,95971.0,0.12336]
[1763376644045,0.0001103,95972.0,95971.0,0.10787]
[1763376644222,0.0001103,95972.0,95971.0,0.1]
[1763376645260,0.0001103,95972.0,95971.0,0.101]
[1763376646504,0.0001103,95972.0,95971.0,0.10887]
[1763376649291,0.61395315,95972.0,95971.0,0.101]
[1763376649495,0.70860034,95972.0,95971.0,0.076]
[1763376649703,0.53146362,95940.0,95929.0,0.01156]
[1763376649920,0.57488236,95940.0,95929.0,0.01156]
[1763376650143,0.57488236,95940.0,95922.0,0.01156]
[1763376650350,0.57488236,95940.0,95909.0,0.01156]
[1763376650351,0.61684833,95940.0,95909.0,0.01156]
[1763376650564,0.86021735,95940.0,95904.0,0.01156]
[1763376650773,0.86021735,95940.0,95906.0,0.02438]
[1763376651030,0.6761485,95940.0,95915.0,0.01156]
[1763376651228,0.66737378,95940.0,95939.0,0.00122745]
[1763376651429,0.66737378,95940.0,95939.0,0.00022745]
[1763376651872,0.66837378,95940.0,95939.0,0.00022745]
[1763376652083,0.69877975,95940.0,95939.0,0.00022745]
[1763376652248,0.77204316,95940.0,95939.0,0.00022745]
[1763376652462,0.78840877,95940.0,95939.0,0.00022745]
[1763376652851,0.66837378,95940.0,95939.0,0.00022745]
[1763376653249,0.66832406,95940.0,95939.0,0.00022745]
[1763376654437,0.64585383,95940.0,95939.0,0.00022745]
[1763376655194,0.66221933,95940.0,95939.0,0.00022745]
[1763376660800,0.91081933,95940.0,95939.0,0.00022745]
[1763376661073,1.07102144,95940.0,95939.0,0.00022745]
[1763376661273,0.57492365,95921.0,95920.0,0.1]
[1763376661488,0.57492365,95921.0,95886.0,0.01156]
[1763376661489,0.36641874,95904.0,95895.0,0.1]
[1763376661642,0.04341874,95902.0,95886.0,0.01156]
[1763376661845,0.04341874,95900.0,95892.0,0.05730122]
[1763376662068,0.04341874,95898.0,95893.0,0.02085657]
[1763376662249,0.00370012,95897.0,95893.0,0.02085657]
[1763376662632,0.00370012,95897.0,95893.0,0.02098912]
[1763376663260,0.00370012,95897.0,95893.0,0.12098912]
[1763376664174,0.00370012,95897.0,95893.0,0.10113255]
[1763376664347,0.04711886,95899.0,95893.0,0.10113255]
[1763376664552,0.00370012,95898.0,95893.0,0.10113255]
[1763376665007,0.04341874,95899.0,95897.0,0.02781]
[1763376665181,0.36641874,95906.0,95898.0,0.01625]
[1763376665381,0.04341874,95904.0,95900.0,0.01625]
[1763376665586,0.04341874,95902.0,95900.0,0.01625]
[1763376665970,0.04711886,95902.0,95900.0,0.01625]
[1763376666222,0.04341874,95905.0,95901.0,0.01625]
[1763376666433,0.323,95919.0,95905.0,0.01625]
[1763376666612,0.323,95919.0,95910.0,0.05730122]
[1763376666787,0.51764967,95920.0,95918.0,0.02781]
[1763376666991,0.36641874,95927.0,95919.0,0.01625]
[1763376667194,0.04341874,95925.0,95919.0,0.04063]
[1763376667356,0.00370012,95924.0,95919.0,0.04063]
[1763376667567,0.00370012,95924.0,95918.0,0.01156]
[1763376667762,0.00370012,95924.0,95913.0,0.01156]
[1763376668010,0.323,95922.0,95913.0,0.01156]
[1763376668210,0.00370012,95921.0,95913.0,0.01156]
[1763376668769,0.0163655,95920.0,95916.0,0.1]
[1763376668985,0.04711886,95919.0,95916.0,0.1]
[1763376669549,0.04711886,95919.0,95918.0,0.00057115]
[1763376669682,0.0163655,95920.0,95918.0,0.01682115]
[1763376669902,0.05978424,95920.0,95919.0,0.04063]
[1763376670085,0.05978424,95920.0,95919.0,0.04117395]
[1763376670689,0.05978424,95920.0,95919.0,0.00054395]
[1763376670890,0.05978424,95920.0,95919.0,0.10054395]
[1763376671896,0.05978424,95920.0,95919.0,0.14117395]
[1763376672282,0.05978424,95920.0,95919.0,0.11679395]
[1763376672689,0.05978424,95920.0,95919.0,0.11779395]
[1763376672894,0.05978424,95920.0,95919.0,0.11679395]
[1763376674181,0.05978424,95920.0,95919.0,0.14117395]
[1763376674965,0.0163655,95920.0,95919.0,0.14117395]
[1763376675355,0.323,95929.0,95919.0,0.16202487]
[1763376675557,0.323,95929.0,95928.0,0.02781]
[1763376675964,0.323,95929.0,95928.0,0.05217918]
[1763376676385,0.51814223,95938.0,95928.0,0.05217918]
[1763376676386,0.36641874,95937.0,95928.0,0.05217918]
[1763376676587,0.36641874,95937.0,95929.0,0.02407]
[1763376676788,0.36653821,95937.0,95936.0,0.02769]
[1763376677163,0.00011947,95937.0,95936.0,0.05176]
[1763376679111,0.00011947,95937.0,95936.0,0.07260723]
[1763376679530,0.00011947,95937.0,95936.0,0.17260723]
[1763376679940,0.00011947,95937.0,95936.0,0.17360723]
[1763376680789,0.00011947,95937.0,95936.0,0.15276]
[1763376681005,0.00011947,95937.0,95936.0,0.12869]
[1763376683226,0.00011947,95937.0,95936.0,0.101]
[1763376683450,0.00011947,95937.0,95936.0,0.001]
[1763376683451,0.57500835,95937.0,95936.0,0.001]
[1763376684296,0.36641874,95936.0,95930.0,0.10024479]
[1763376684518,0.04341874,95934.0,95930.0,0.10024479]
[1763376684731,0.04341874,95932.0,95930.0,0.10024479]
[1763376685356,0.04341874,95931.0,95930.0,0.10024479]
[1763376687276,0.57860204,95931.0,95930.0,0.10024479]
[1763376687481,0.57490192,95931.0,95930.0,0.10024479]
[1763376687687,0.57490192,95931.0,95930.0,0.00024479]
[1763376691942,0.59739268,95931.0,95930.0,0.00024479]
[1763376692448,0.61375801,95931.0,95930.0,0.00024479]
[1763376697499,0.40527483,95931.0,95930.0,0.00024479]
[1763376697908,0.61375801,95931.0,95930.0,0.00024479]
[1763376700330,0.59126725,95931.0,95930.0,0.00024479]
[1763376700734,0.38278407,95931.0,95930.0,0.00024479]
[1763376700944,0.59126725,95931.0,95930.0,0.00024479]